fUST/lending_fUST_20250627
["ID","MTS","AMOUNT","RATE_DAILY","PERIOD"]
[368055860,1751010650231,-460.0,0.00020821,2]
[368055861,1751010650241,-460.0,0.00020821,2]
[368055862,1751010650250,-730.62,0.00020821,2]
[368055863,1751010650259,-460.0,0.00020821,2]
[368055864,1751010650268,-460.0,0.00020821,2]
[368055865,1751010650277,-566.54,0.00020821,2]
[368055866,1751010650287,-496.07,0.00020821,2]
[368055867,1751010650296,-460.0,0.00020821,2]
[368055868,1751010650305,-1079.93,0.00020821,2]
[368055869,1751010650318,-2424.28,0.00020821,2]
[368055870,1751010650328,-460.0,0.00020821,2]
[368055871,1751010650337,-1936.59,0.00020821,2]
[368055872,1751010650347,-460.0,0.00020821,2]
[368055873,1751010650357,-460.0,0.00020821,2]
[368055874,1751010650366,-2025.0,0.00020821,2]
[368055875,1751010650376,-876.54,0.00020821,2]
[368055876,1751010650386,-460.0,0.00020821,2]
[368055877,1751010650395,-460.0,0.00020821,2]
[368055878,1751010650405,-1065.12,0.00020821,2]
[368055879,1751010650414,-595.85,0.00020821,2]
[368055880,1751010650423,-701.08,0.00020821,2]
[368055881,1751010650532,-770.17,0.00020821,2]
[368055882,1751010650542,-460.0,0.00020821,2]
[368055883,1751010650552,-674.07,0.00020821,2]
[368055884,1751010650561,-460.0,0.00020821,2]
[368055885,1751010650571,-460.0,0.00020821,2]
[368055886,1751010650580,-460.0,0.00020821,2]
[368055887,1751010650589,-4905.11,0.00020821,2]
[368055888,1751010650599,-460.0,0.00020821,2]
[368055889,1751010650608,-3060.17,0.00020821,2]
[368055890,1751010650618,-740.94,0.00020821,2]
[368055891,1751010650627,-2162.73,0.00020821,2]
[368055892,1751010650636,-547.4,0.00020821,2]
[368055893,1751010650646,-460.0,0.00020821,2]
[368055894,1751010650655,-511.8,0.00020821,2]
[368055895,1751010650664,-460.0,0.00020821,2]
[368055896,1751010650674,-460.0,0.00020821,2]
[368055897,1751010650683,-867.25,0.00020821,2]
[368055898,1751010650692,-681.37,0.00020821,2]
[368055899,1751010650701,-470.79891649,0.00020821,2]
[368055900,1751010650711,-460.0,0.00020821,2]
[368055901,1751010650720,-466.02,0.00020821,2]
[368055902,1751010650730,-1218.25,0.00020821,2]
[368055903,1751010650739,-460.0,0.00020821,2]
[368055904,1751010650748,-460.0,0.00020821,2]
[368055905,1751010650758,-2484.53,0.00020821,2]
[368055906,1751010650767,-565.32,0.00020821,2]
[368055907,1751010650775,-460.0,0.00020821,2]
[368055908,1751010650785,-544.97,0.00020821,2]
[368055909,1751010650794,-588.3,0.00020821,2]
[368055910,1751010650803,-163.66091457,0.00020821,2]
[368055911,1751010650812,-460.0,0.00020821,2]
[368055912,1751010650822,-460.0,0.00020821,2]
[368055913,1751010650831,-460.0,0.00020821,2]
[368055914,1751010650840,-999.26,0.00020821,2]
[368055915,1751010650849,-4629.97,0.00020821,2]
[368055916,1751010650858,-525.74,0.00020821,2]
[368055917,1751010650867,-4835.06,0.00020821,2]
[368055918,1751010650877,-503.91,0.00020821,2]
[368055919,1751010650886,-3031.63,0.00020821,2]
[368055920,1751010650895,-460.0,0.00020821,2]
[368055921,1751010650904,-4927.06,0.00020821,2]
[368055922,1751010650913,-460.0,0.00020821,2]
[368055923,1751010650922,-684.65,0.00020821,2]
[368055924,1751010650932,-3384.82,0.00020821,2]
[368055925,1751010650941,-516.72,0.00020821,2]
[368055926,1751010650952,-460.0,0.00020821,2]
[368055927,1751010650961,-1304.15,0.00020821,2]
[368055928,1751010650971,-1641.22,0.00020821,2]
[368055929,1751010650980,-460.0,0.00020821,2]
[368055930,1751010650991,-1059.53,0.00020821,2]
[368055931,1751010651000,-460.0,0.00020821,2]
[368055932,1751010651010,-742.6949969,0.00020825,2]
[368055933,1751010651020,-1017.33332786,0.00020844,2]
[368055934,1751010651029,-1000.0,0.00020844,2]
[368055935,1751010651040,-579.435519,0.00020849,2]
[368055936,1751010651049,-182.3372037,0.00020849,2]
[368055937,1751010651058,-575.118961,0.00020849,2]
[368055938,1751010651067,-177.4788171,0.00020849,2]
[368055939,1751010651076,-770.17471178,0.0002088,2]
[368055940,1751010651085,-288.0,0.00020898,2]
[368055941,1751010651096,-2348.48298613,0.000209,2]
[368055942,1751010651106,-153.0,0.00020904,2]
[368055943,1751010651117,-5888.0,0.00020925,2]
[368055944,1751010651127,-7275.59291007,0.00020934,4]
[368055945,1751010651137,-798.67117612,0.00020935,2]
[368055946,1751010651147,-1000.0,0.00020988,2]
[368055947,1751010651156,-339.72951692,0.0002099,2]
[368055948,1751010651165,-2429.4,0.00021,2]
[368055949,1751010651174,-151.0,0.00021,3]
[368055950,1751010651183,-1567.163924,0.00021052,2]
[368055951,1751010651193,-180.0,0.00021052,2]
[368055952,1751010651202,-1000.0,0.00021068,2]
[368055953,1751010651211,-1000.0,0.00021068,2]
[368055954,1751010651220,-1000.0,0.00021068,2]
[368055955,1751010651229,-158.58637463,0.00021068,2]
[368055956,1751010651239,-242.5,0.00021094,2]
[368055957,1751010651248,-460.0,0.00021094,2]
[368055958,1751010651257,-460.0,0.00021094,2]
[368055959,1751010651266,-163.96,0.00021094,2]
[368055960,1751010651275,-436.31,0.00021094,2]
[368055961,1751010651284,-460.0,0.00021094,2]
[368055962,1751010651294,-460.0,0.00021094,2]
[368055963,1751010651303,-460.0,0.00021094,2]
[368055964,1751010651315,-460.0,0.00021094,2]
[368055965,1751010651324,-475.40833549,0.00021094,2]
[368055966,1751010651334,-460.0,0.00021094,2]
[368055967,1751010651343,-460.0,0.00021094,2]
[368055968,1751010651352,-580.23,0.00021094,2]
[368055969,1751010651361,-722.79,0.00021094,2]
[368055970,1751010651371,-460.0,0.00021094,2]
[368055971,1751010651380,-460.0,0.00021094,2]
[368055972,1751010651389,-460.0,0.00021094,2]
[368055973,1751010651398,-425.171196,0.00021094,2]
[368055974,1751010651407,-460.0,0.00021094,2]
[368055975,1751010651416,-460.0,0.00021094,2]
[368055976,1751010651425,-460.0,0.00021094,2]
[368055977,1751010651434,-451.85607356,0.00021094,2]
[368055978,1751010651444,-460.0,0.00021094,2]
[368055979,1751010651453,-460.0,0.00021094,2]
[368055980,1751010651462,-460.0,0.00021094,2]
[368055981,1751010651471,-460.0,0.00021094,2]
[368055982,1751010651481,-460.0,0.00021094,2]
[368055983,1751010651490,-460.0,0.00021094,2]
[368055984,1751010651500,-460.0,0.00021094,2]
[368055985,1751010651510,-460.0,0.00021094,2]
[368055986,1751010651519,-184.76156487,0.00021094,2]
[368055987,1751010651528,-498.61682327,0.00021094,2]
[368055988,1751010651538,-460.0,0.00021094,2]
[368055989,1751010651547,-460.0,0.00021094,2]
[368055990,1751010651556,-23979.22243832,0.00021095,2]
[368055991,1751010651565,-47426.73166746,0.00021095,2]
[368055992,1751010651575,-460.0,0.00021095,2]
[368055993,1751010651584,-460.0,0.00021095,2]
[368055994,1751010651594,-460.0,0.00021095,2]
[368055995,1751010651603,-460.0,0.00021095,2]
[368055996,1751010651611,-460.0,0.00021095,2]
[368055997,1751010651621,-553.95090805,0.00021095,2]
[368055998,1751010651630,-730.62,0.00021095,2]
[368055999,1751010651640,-460.0,0.00021095,2]
[368056000,1751010651649,-460.0,0.00021095,2]
[368056001,1751010651659,-496.07,0.00021095,2]
[368056002,1751010651669,-460.0,0.00021095,2]
[368056003,1751010651678,-1079.93,0.00021095,2]
[368056004,1751010651687,-2424.28,0.00021095,2]
[368056005,1751010651696,-460.0,0.00021095,2]
[368056006,1751010651707,-1936.59,0.00021095,2]
[368056007,1751010651717,-534.67,0.00021095,2]
[368056008,1751010651727,-460.0,0.00021095,2]
[368056009,1751010651736,-2025.0,0.00021095,2]
[368056010,1751010651746,-876.54,0.00021095,2]
[368056011,1751010651755,-396.45385479,0.00021095,2]
[368056012,1751010651764,-460.0,0.00021095,2]
[368056013,1751010651773,-1065.12,0.00021095,2]
[368056014,1751010651782,-595.85,0.00021095,2]
[368056015,1751010651791,-701.08,0.00021095,2]
[368056016,1751010651800,-770.17,0.00021095,2]
[368056017,1751010651810,-460.0,0.00021095,2]
[368056018,1751010651819,-674.07,0.00021095,2]
[368056019,1751010651828,-460.0,0.00021095,2]
[368056020,1751010651837,-460.0,0.00021095,2]
[368056021,1751010651846,-460.0,0.00021095,2]
[368056022,1751010651855,-4905.11,0.00021095,2]
[368056023,1751010651864,-3060.17,0.00021095,2]
[368056024,1751010651873,-740.94,0.00021095,2]
[368056025,1751010651883,-2162.73,0.00021095,2]
[368056026,1751010651892,-547.4,0.00021095,2]
[368056027,1751010651901,-460.0,0.00021095,2]
[368056028,1751010651911,-511.8,0.00021095,2]
[368056029,1751010651920,-460.0,0.00021095,2]
[368056030,1751010651930,-460.0,0.00021095,2]
[368056031,1751010651940,-867.25,0.00021095,2]
[368056032,1751010651949,-681.37,0.00021095,2]
[368056033,1751010651958,-460.0,0.00021095,2]
[368056034,1751010651968,-466.02,0.00021095,2]
[368056035,1751010651977,-1218.25,0.00021095,2]
[368056036,1751010651987,-460.0,0.00021095,2]
[368056037,1751010651996,-2484.53,0.00021095,2]
[368056038,1751010652006,-565.32,0.00021095,2]
[368056039,1751010652015,-460.0,0.00021095,2]
[368056040,1751010652026,-544.97,0.00021095,2]
[368056041,1751010652036,-588.3,0.00021095,2]
[368056042,1751010652046,-226.2393405,0.00021095,2]
[368056043,1751010652056,-460.0,0.00021095,2]
[368056044,1751010652065,-460.0,0.00021095,2]
[368056045,1751010652074,-999.26,0.00021095,2]
[368056046,1751010652083,-4629.97,0.00021095,2]
[368056047,1751010652093,-525.74,0.00021095,2]
[368056048,1751010652102,-4835.06,0.00021095,2]
[368056049,1751010652114,-503.91,0.00021095,2]
[368056050,1751010652124,-3031.63,0.00021095,2]
[368056051,1751010652134,-460.0,0.00021095,2]
[368056052,1751010652143,-4927.06,0.00021095,2]
[368056053,1751010652153,-460.0,0.00021095,2]
[368056054,1751010652163,-684.65,0.00021095,2]
[368056055,1751010652172,-3384.82,0.00021095,2]
[368056056,1751010652181,-516.72,0.00021095,2]
[368056057,1751010652191,-460.0,0.00021095,2]
[368056058,1751010652200,-1304.15,0.00021095,2]
[368056059,1751010652209,-1641.22,0.00021095,2]
[368056060,1751010652220,-460.0,0.00021095,2]
[368056061,1751010652229,-151.0,0.00021095,2]
[368056062,1751010652238,-1059.53,0.00021095,2]
[368056063,1751010652247,-460.0,0.00021095,2]
[368056064,1751010652257,-953.69017575,0.00021106,2]
[368056065,1751010652268,-7275.59291007,0.00021141,4]
[368056066,1751010652278,-1171.279,0.00021143,2]
[368056067,1751010652287,-177.888,0.00021143,2]
[368056068,1751010652296,-305.39710031,0.00021154,2]
[368056069,1751010652305,-500.0,0.00021154,2]
[368056070,1751010652317,-398.33270411,0.00021173,2]
[368056071,1751010652326,-612.0,0.00021197,2]
[368056072,1751010652335,-2000.0,0.000212,2]
[368056073,1751010652344,-151.0,0.000212,3]
[368056074,1751010652354,-25000.0,0.00021208,2]
[368056075,1751010652363,-5000.0,0.00021208,2]
[368056076,1751010652372,-180.0,0.00021233,2]
[368056077,1751010652382,-1500.0,0.00021271,2]
[368056078,1751010652393,-1503.72718248,0.00021276,2]
[368056079,1751010652402,-180.0,0.00021302,2]
[368056080,1751010652411,-180.0,0.00021302,2]
[368056081,1751010652422,-151.0,0.00021348,2]
[368056082,1751010652433,-151.0,0.00021348,2]
[368056083,1751010652442,-151.0,0.00021348,2]
[368056084,1751010652452,-151.0,0.00021348,2]
[368056085,1751010652462,-7275.59291007,0.00021348,5]
[368056086,1751010652472,-460.0,0.00021368,2]
[368056087,1751010652481,-460.0,0.00021368,2]
[368056088,1751010652491,-460.0,0.00021368,2]
[368056089,1751010652500,-460.0,0.00021368,2]
[368056090,1751010652509,-460.0,0.00021368,2]
[368056091,1751010652518,-460.0,0.00021368,2]
[368056092,1751010652527,-478.25,0.00021368,2]
[368056093,1751010652536,-460.0,0.00021368,2]
[368056094,1751010652546,-580.23,0.00021368,2]
[368056095,1751010652556,-722.79,0.00021368,2]
[368056096,1751010652567,-460.0,0.00021368,2]
[368056097,1751010652575,-460.0,0.00021368,2]
[368056098,1751010652584,-460.0,0.00021368,2]
[368056099,1751010652593,-460.0,0.00021368,2]
[368056100,1751010652603,-460.0,0.00021368,2]
[368056101,1751010652612,-460.0,0.00021368,2]
[368056102,1751010652621,-460.0,0.00021368,2]
[368056103,1751010652631,-460.0,0.00021368,2]
[368056104,1751010652640,-460.0,0.00021368,2]
[368056105,1751010652649,-186.66845296,0.00021368,2]
[368056106,1751010652756,-229.90573568,0.00021368,2]
[368056107,1751010652766,-460.0,0.00021368,2]
[368056108,1751010652775,-311.97023456,0.00021368,2]
[368056109,1751010652785,-460.0,0.00021368,2]
[368056110,1751010652794,-460.0,0.00021368,2]
[368056111,1751010652803,-460.0,0.00021368,2]
[368056112,1751010652812,-460.0,0.00021369,2]
[368056113,1751010652822,-553.55998456,0.00021369,2]
[368056114,1751010652831,-460.0,0.00021369,2]
[368056115,1751010652840,-460.0,0.00021369,2]
[368056116,1751010652849,-460.0,0.00021369,2]
[368056117,1751010652859,-730.62,0.00021369,2]
[368056118,1751010652868,-460.0,0.00021369,2]
[368056119,1751010652877,-460.0,0.00021369,2]
[368056120,1751010652886,-496.07,0.00021369,2]
[368056121,1751010652896,-460.0,0.00021369,2]
[368056122,1751010652905,-1079.93,0.00021369,2]
[368056123,1751010652914,-2424.28,0.00021369,2]
[368056124,1751010652924,-460.0,0.00021369,2]
[368056125,1751010652933,-1936.59,0.00021369,2]
[368056126,1751010652943,-460.0,0.00021369,2]
[368056127,1751010652952,-2025.0,0.00021369,2]
[368056128,1751010652962,-876.54,0.00021369,2]
[368056129,1751010652971,-460.0,0.00021369,2]
[368056130,1751010652980,-1065.12,0.00021369,2]
[368056131,1751010652990,-595.85,0.00021369,2]
[368056132,1751010653004,-701.08,0.00021369,2]
[368056133,1751010653013,-770.17,0.00021369,2]
[368056134,1751010653022,-460.0,0.00021369,2]
[368056135,1751010653031,-674.07,0.00021369,2]
[368056136,1751010653041,-460.0,0.00021369,2]
[368056137,1751010653050,-460.0,0.00021369,2]
[368056138,1751010653059,-460.0,0.00021369,2]
[368056139,1751010653069,-4905.11,0.00021369,2]
[368056140,1751010653078,-3060.17,0.00021369,2]
[368056141,1751010653089,-740.94,0.00021369,2]
[368056142,1751010653098,-2162.73,0.00021369,2]
[368056143,1751010653108,-547.4,0.00021369,2]
[368056144,1751010653117,-460.0,0.00021369,2]
[368056145,1751010653126,-511.8,0.00021369,2]
[368056146,1751010653135,-460.0,0.00021369,2]
[368056147,1751010653145,-460.0,0.00021369,2]
[368056148,1751010653155,-867.25,0.00021369,2]
[368056149,1751010653164,-681.37,0.00021369,2]
[368056150,1751010653173,-151.0,0.00021369,2]
[368056151,1751010653183,-466.02,0.00021369,2]
[368056152,1751010653192,-1218.25,0.00021369,2]
[368056153,1751010653201,-460.0,0.00021369,2]
[368056154,1751010653210,-2484.53,0.00021369,2]
[368056155,1751010653219,-565.32,0.00021369,2]
[368056156,1751010653228,-460.0,0.00021369,2]
[368056157,1751010653238,-544.97,0.00021369,2]
[368056158,1751010653247,-588.3,0.00021369,2]
[368056159,1751010653256,-460.0,0.00021369,2]
[368056160,1751010653266,-460.0,0.00021369,2]
[368056161,1751010653276,-999.26,0.00021369,2]
[368056162,1751010653285,-4629.97,0.00021369,2]
[368056163,1751010653294,-525.74,0.00021369,2]
[368056164,1751010653303,-4835.06,0.00021369,2]
[368056165,1751010653315,-503.91,0.00021369,2]
[368056166,1751010653324,-3031.63,0.00021369,2]
[368056167,1751010653333,-460.0,0.00021369,2]
[368056168,1751010653342,-4927.06,0.00021369,2]
[368056169,1751010653351,-157.432354,0.00021369,2]
[368056170,1751010653361,-157.432354,0.00021369,2]
[368056171,1751010653370,-460.0,0.00021369,2]
[368056172,1751010653379,-684.65,0.00021369,2]
[368056173,1751010653388,-3384.82,0.00021369,2]
[368056174,1751010653397,-151.598614,0.00021369,2]
[368056175,1751010653406,-516.72,0.00021369,2]
[368056176,1751010653416,-460.0,0.00021369,2]
[368056177,1751010653425,-1304.15,0.00021369,2]
[368056178,1751010653434,-1641.22,0.00021369,2]
[368056179,1751010653443,-460.0,0.00021369,2]
[368056180,1751010653453,-1059.53,0.00021369,2]
[368056181,1751010653462,-460.0,0.00021369,2]
[368056182,1751010653471,-1500.0,0.00021392,2]
[368056183,1751010653481,-2348.48298613,0.000214,2]
[368056184,1751010653490,-2000.0,0.000214,2]
[368056185,1751010653499,-151.0,0.000214,3]
[368056186,1751010653509,-612.0,0.00021428,2]
[368056187,1751010653518,-160.0,0.00021527,3]
[368056188,1751010653528,-7275.59291007,0.00021555,5]
[368056189,1751010653537,-965.307379,0.0002156,4]
[368056190,1751010653547,-366.1147399,0.0002157,2]
[368056191,1751010653557,-366.1147399,0.0002157,2]
[368056192,1751010653567,-730.5962346,0.0002157,2]
[368056193,1751010653576,-1723.4,0.00021579,2]
[368056194,1751010653585,-500.0,0.00021579,2]
[368056195,1751010653595,-2000.0,0.000216,2]
[368056196,1751010653605,-151.0,0.000216,4]
[368056197,1751010653614,-460.0,0.00021642,2]
[368056198,1751010653624,-460.0,0.00021642,2]
[368056199,1751010653636,-460.0,0.00021642,2]
[368056200,1751010653646,-460.0,0.00021642,2]
[368056201,1751010653656,-460.0,0.00021642,2]
[368056202,1751010653666,-580.23,0.00021642,2]
[368056203,1751010653676,-722.79,0.00021642,2]
[368056204,1751010653686,-460.0,0.00021642,2]
[368056205,1751010653695,-460.0,0.00021642,2]
[368056206,1751010653705,-460.0,0.00021642,2]
[368056207,1751010653714,-298.61267054,0.00021642,2]
[368056208,1751010653724,-460.0,0.00021642,2]
[368056209,1751010653734,-460.0,0.00021642,2]
[368056210,1751010653743,-460.0,0.00021642,2]
[368056211,1751010653753,-460.0,0.00021642,2]
[368056212,1751010653763,-460.0,0.00021642,2]
[368056213,1751010653772,-460.0,0.00021642,2]
[368056214,1751010653781,-460.0,0.00021643,2]
[368056215,1751010653791,-460.0,0.00021643,2]
[368056216,1751010653801,-460.0,0.00021643,2]
[368056217,1751010653810,-541.4189717,0.00021643,2]
[368056218,1751010653820,-730.62,0.00021643,2]
[368056219,1751010653830,-460.0,0.00021643,2]
[368056220,1751010653839,-460.0,0.00021643,2]
[368056221,1751010653849,-496.07,0.00021643,2]
[368056222,1751010653858,-460.0,0.00021643,2]
[368056223,1751010653868,-1079.93,0.00021643,2]
[368056224,1751010653877,-2424.28,0.00021643,2]
[368056225,1751010653887,-460.0,0.00021643,2]
[368056226,1751010653898,-1936.59,0.00021643,2]
[368056227,1751010653910,-460.0,0.00021643,2]
[368056228,1751010653922,-2025.0,0.00021643,2]
[368056229,1751010653932,-876.54,0.00021643,2]
[368056230,1751010653942,-460.0,0.00021643,2]
[368056231,1751010653952,-1065.12,0.00021643,2]
[368056232,1751010653962,-595.85,0.00021643,2]
[368056233,1751010653972,-701.08,0.00021643,2]
[368056234,1751010653983,-770.17,0.00021643,2]
[368056235,1751010653991,-460.0,0.00021643,2]
[368056236,1751010654000,-674.07,0.00021643,2]
[368056237,1751010654010,-460.0,0.00021643,2]
[368056238,1751010654020,-460.0,0.00021643,2]
[368056239,1751010654030,-460.0,0.00021643,2]
[368056240,1751010654041,-4905.11,0.00021643,2]
[368056241,1751010654052,-3060.17,0.00021643,2]
[368056242,1751010654062,-740.94,0.00021643,2]
[368056243,1751010654071,-2162.73,0.00021643,2]
[368056244,1751010654081,-547.4,0.00021643,2]
[368056245,1751010654090,-460.0,0.00021643,2]
[368056246,1751010654099,-511.8,0.00021643,2]
[368056247,1751010654109,-460.0,0.00021643,2]
[368056248,1751010654120,-460.0,0.00021643,2]
[368056249,1751010654129,-867.25,0.00021643,2]
[368056250,1751010654138,-681.37,0.00021643,2]
[368056251,1751010654148,-466.02,0.00021643,2]
[368056252,1751010654157,-1218.25,0.00021643,2]
[368056253,1751010654167,-460.0,0.00021643,2]
[368056254,1751010654176,-2484.53,0.00021643,2]
[368056255,1751010654186,-565.32,0.00021643,2]
[368056256,1751010654196,-460.0,0.00021643,2]
[368056257,1751010654205,-544.97,0.00021643,2]
[368056258,1751010654214,-588.3,0.00021643,2]
[368056259,1751010654224,-460.0,0.00021643,2]
[368056260,1751010654233,-460.0,0.00021643,2]
[368056261,1751010654243,-999.26,0.00021643,2]
[368056262,1751010654252,-4629.97,0.00021643,2]
[368056263,1751010654263,-525.74,0.00021643,2]
[368056264,1751010654272,-4835.06,0.00021643,2]
[368056265,1751010654282,-503.91,0.00021643,2]
[368056266,1751010654291,-3031.63,0.00021643,2]
[368056267,1751010654301,-460.0,0.00021643,2]
[368056268,1751010654312,-4927.06,0.00021643,2]
[368056269,1751010654322,-460.0,0.00021643,2]
[368056270,1751010654332,-684.65,0.00021643,2]
[368056271,1751010654342,-3384.82,0.00021643,2]
[368056272,1751010654352,-516.72,0.00021643,2]
[368056273,1751010654361,-460.0,0.00021643,2]
[368056274,1751010654370,-1304.15,0.00021643,2]
[368056275,1751010654380,-1641.22,0.00021643,2]
[368056276,1751010654390,-460.0,0.00021643,2]
[368056277,1751010654399,-151.0,0.00021643,2]
[368056278,1751010654409,-1059.53,0.00021643,2]
[368056279,1751010654418,-176.59741713,0.00021643,2]
[368056280,1751010654428,-166.08289693,0.00021644,2]
[368056281,1751010654438,-612.0,0.00021657,2]
[368056282,1751010654447,-5888.0,0.00021659,2]
[368056283,1751010654457,-306.0,0.00021671,2]
[368056284,1751010654466,-306.0,0.00021671,2]
[368056285,1751010654476,-153.0,0.00021671,2]
[368056286,1751010654485,-153.0,0.00021671,2]
[368056287,1751010654495,-153.0,0.00021671,2]
[368056288,1751010654504,-153.0,0.00021671,2]
[368056289,1751010654515,-153.0,0.00021671,2]
[368056290,1751010654526,-155.9288489,0.00021671,2]
[368056291,1751010654537,-309.3374524,0.00021671,2]
[368056292,1751010654547,-153.0,0.00021671,2]
[368056293,1751010654556,-153.0,0.00021671,2]
[368056294,1751010654565,-153.0,0.00021671,2]
[368056295,1751010654575,-4662.34,0.000217,2]
[368056296,1751010654585,-151.0,0.000217,3]
[368056297,1751010654595,-612.0,0.00021701,2]
[368056298,1751010654604,-1723.4,0.00021725,2]
[368056299,1751010654614,-623.89917797,0.00021725,2]
[368056300,1751010654623,-5000.0,0.00021756,2]
[368056301,1751010654633,-7275.59291007,0.00021762,5]
[368056302,1751010654642,-2681.4967068,0.0002178,2]
[368056303,1751010654652,-155.058865,0.0002178,2]
[368056304,1751010654662,-151.985088,0.0002178,2]
[368056305,1751010654671,-151.0,0.0002178,2]
[368056306,1751010654681,-151.0,0.0002178,2]
[368056307,1751010654691,-151.0,0.0002178,2]
[368056308,1751010654701,-1723.4,0.00021783,2]
[368056309,1751010654711,-200.0,0.0002179,4]
[368056310,1751010654720,-2000.0,0.000218,2]
[368056311,1751010654730,-151.0,0.000218,3]
[368056312,1751010654740,-5888.0,0.00021803,2]
[368056313,1751010654842,-1780.16948974,0.00021819,2]
[368056314,1751010654853,-166.08289693,0.00021836,2]
[368056315,1751010654862,-160.0,0.00021851,4]
[368056316,1751010654872,-612.0,0.00021885,2]
[368056317,1751010654882,-201.95961414,0.0002189,8]
[368056318,1751010654891,-1723.4,0.00021897,2]
[368056319,1751010654901,-1723.4,0.00021897,2]
[368056320,1751010654910,-1723.4,0.00021897,2]
[368056321,1751010654920,-151.0,0.00021898,2]
[368056322,1751010654929,-151.0,0.00021898,2]
[368056323,1751010654939,-151.0,0.00021898,2]
[368056324,1751010654948,-169.5408078,0.000219,2]
[368056325,1751010654957,-2348.48298613,0.000219,2]
[368056326,1751010654966,-10400.39089948,0.000219,2]
[368056327,1751010654976,-460.0,0.00021916,2]
[368056328,1751010654985,-460.0,0.00021916,2]
[368056329,1751010654995,-460.0,0.00021916,2]
[368056330,1751010655004,-460.0,0.00021916,2]
[368056331,1751010655013,-1723.4,0.00021916,2]
[368056332,1751010655022,-1723.4,0.00021916,2]
[368056333,1751010655031,-460.0,0.00021916,2]
[368056334,1751010655041,-580.23,0.00021916,2]
[368056335,1751010655050,-722.79,0.00021916,2]
[368056336,1751010655059,-568.43,0.00021916,2]
[368056337,1751010655070,-460.0,0.00021916,2]
[368056338,1751010655079,-460.0,0.00021916,2]
[368056339,1751010655089,-460.0,0.00021916,2]
[368056340,1751010655098,-460.0,0.00021916,2]
[368056341,1751010655108,-203.42586458,0.00021916,2]
[368056342,1751010655118,-460.0,0.00021916,2]
[368056343,1751010655127,-460.0,0.00021916,2]
[368056344,1751010655139,-203.79692233,0.00021917,2]
[368056345,1751010655148,-460.0,0.00021917,2]
[368056346,1751010655157,-547.03226586,0.00021917,2]
[368056347,1751010655167,-500.0,0.00021917,2]
[368056348,1751010655176,-460.0,0.00021917,2]
[368056349,1751010655186,-460.0,0.00021917,2]
[368056350,1751010655195,-183.22300011,0.00021917,2]
[368056351,1751010655205,-730.62,0.00021917,2]
[368056352,1751010655214,-460.0,0.00021917,2]
[368056353,1751010655224,-460.0,0.00021917,2]
[368056354,1751010655233,-496.07,0.00021917,2]
[368056355,1751010655242,-460.0,0.00021917,2]
[368056356,1751010655252,-1079.93,0.00021917,2]
[368056357,1751010655262,-2424.28,0.00021917,2]
[368056358,1751010655271,-460.0,0.00021917,2]
[368056359,1751010655283,-1936.59,0.00021917,2]